fUSD/lending_fUSD_20240520
["ID","MTS","AMOUNT","RATE_DAILY","PERIOD"]
[327583519,1716245455114,-500.0,0.00038356,6]
[327583520,1716245455124,-663.65,0.00038356,6]
[327583521,1716245455134,-500.0,0.00038356,6]
[327583522,1716245455144,-2201.17,0.00038356,6]
[327583523,1716245455154,-2634.35,0.00038356,6]
[327583524,1716245455163,-515.23337747,0.00038356,6]
[327583525,1716245455173,-512.21692804,0.00038356,6]
[327583526,1716245455183,-500.0,0.00038356,6]
[327583527,1716245455192,-500.0,0.00038356,6]
[327583528,1716245455201,-508.18297792,0.00038356,6]
[327583529,1716245455211,-500.0,0.00038356,6]
[327583530,1716245455220,-500.0,0.00038356,6]
[327583531,1716245455229,-5000.0,0.00038356,6]
[327583532,1716245455240,-500.0,0.00038356,6]
[327583533,1716245455249,-1912.42,0.00038356,6]
[327583534,1716245455259,-500.0,0.00038356,6]
[327583535,1716245455268,-988.93,0.00038356,6]
[327583536,1716245455278,-511.73,0.00038356,6]
[327583537,1716245455288,-665.78,0.00038356,6]
[327583538,1716245455297,-15236.32,0.00038356,6]
[327583539,1716245455307,-2813.24,0.00038356,6]
[327583540,1716245455316,-4733.21,0.00038356,6]
[327583541,1716245455326,-609.27,0.00038356,6]
[327583542,1716245455335,-500.0,0.00038356,6]
[327583543,1716245455344,-151.0,0.00038356,7]
[327583544,1716245455354,-151.0,0.00038356,7]
[327583545,1716245455364,-717.45,0.00038356,6]
[327583546,1716245455374,-216.96467872,0.00038356,6]
[327583547,1716245455384,-832.91,0.00038356,6]
[327583548,1716245455394,-151.0,0.00038356,7]
[327583549,1716245455403,-151.0,0.00038356,7]
[327583550,1716245455414,-500.0,0.00038356,6]
[327583551,1716245455423,-151.0,0.00038356,7]
[327583552,1716245455433,-500.0,0.00038356,6]
[327583553,1716245455442,-151.0,0.00038356,7]
[327583554,1716245455452,-500.0,0.00038356,6]
[327583555,1716245455461,-2795.48,0.00038356,6]
[327583556,1716245455471,-995.68,0.00038356,6]
[327583557,1716245455481,-781.81,0.00038356,6]
[327583558,1716245455492,-2440.61,0.00038356,6]
[327583559,1716245455502,-1005.43,0.00038356,6]
[327583560,1716245455511,-656.76,0.00038356,6]
[327583561,1716245455521,-500.0,0.00038356,6]
[327583562,1716245455531,-583.38579818,0.00038356,6]
[327583563,1716245455540,-151.0,0.00038356,7]
[327583564,1716245455549,-151.0,0.00038356,7]
[327583565,1716245455559,-1373.96,0.00038356,6]
[327583566,1716245455568,-11657.41,0.00038356,6]
[327583567,1716245455578,-151.0,0.00038356,7]
[327583568,1716245455588,-151.0,0.00038356,7]
[327583569,1716245455597,-2170.99,0.00038356,6]
[327583570,1716245455606,-151.0,0.00038356,7]
[327583571,1716245455616,-766.1,0.00038356,6]
[327583572,1716245455625,-151.0,0.00038356,7]
[327583573,1716245455635,-151.0,0.00038356,7]
[327583574,1716245455644,-272.32492983,0.00038356,7]
[327583575,1716245455655,-3882.68,0.00038356,6]
[327583576,1716245455664,-1454.32,0.00038356,6]
[327583577,1716245455674,-1168.91,0.00038356,6]
[327583578,1716245455684,-745.77,0.00038356,6]
[327583579,1716245455693,-500.0,0.00038356,6]
[327583580,1716245455702,-151.0,0.00038356,7]
[327583581,1716245455712,-151.0,0.00038356,7]
[327583582,1716245455722,-500.0,0.00038356,6]
[327583583,1716245455731,-151.0,0.00038356,7]
[327583584,1716245455741,-151.0,0.00038356,7]
[327583585,1716245455751,-232.547834,0.00038356,7]
[327583586,1716245455760,-581.66471208,0.00038356,6]
[327583587,1716245455770,-506.22965654,0.00038356,6]
[327583588,1716245455779,-500.0,0.00038356,6]
[327583589,1716245455788,-976.25,0.00038356,6]
[327583590,1716245455798,-2055.27,0.00038356,6]
[327583591,1716245455807,-500.0,0.00038356,6]
[327583592,1716245455816,-508.19,0.00038356,6]
[327583593,1716245455826,-1395.0,0.00038356,6]
[327583594,1716245455835,-500.0,0.00038356,2]
[327583595,1716245455844,-2845.6,0.00038356,6]
[327583596,1716245455854,-544.33867869,0.00038356,6]
[327583597,1716245455864,-500.0,0.00038356,6]
[327583598,1716245455877,-571.78510248,0.00038356,6]
[327583599,1716245455887,-500.0,0.00038356,6]
[327583600,1716245455896,-3580.22,0.00038356,6]
[327583601,1716245455906,-541.47,0.00038356,6]
[327583602,1716245455916,-600.11798857,0.00038356,6]
[327583603,1716245456010,-583.26087595,0.00038356,6]
[327583604,1716245456020,-543.60922016,0.00038356,6]
[327583605,1716245456030,-500.0,0.00038356,6]
[327583606,1716245456040,-500.0,0.00038356,6]
[327583607,1716245456050,-1044.04,0.00038356,6]
[327583608,1716245456059,-271.501696,0.00038356,7]
[327583609,1716245456069,-500.0,0.00038356,6]
[327583610,1716245456078,-583.89959098,0.00038356,6]
[327583611,1716245456088,-500.0,0.00038356,6]
[327583612,1716245456097,-151.0,0.00038356,7]
[327583613,1716245456107,-151.0,0.00038356,7]
[327583614,1716245456116,-500.0,0.00038356,6]
[327583615,1716245456125,-151.0,0.00038356,7]
[327583616,1716245456135,-151.0,0.00038356,7]
[327583617,1716245456144,-500.0,0.00038356,6]
[327583618,1716245456153,-512.5904946,0.00038356,6]
[327583619,1716245456162,-151.0,0.00038356,7]
[327583620,1716245456172,-3464.86,0.00038356,6]
[327583621,1716245456181,-935.41,0.00038356,6]
[327583622,1716245456193,-563.43,0.00038356,6]
[327583623,1716245456202,-151.0,0.00038356,7]
[327583624,1716245456211,-216.905109,0.00038356,7]
[327583625,1716245456221,-500.0,0.00038356,6]
[327583626,1716245456230,-1685.88,0.00038356,6]
[327583627,1716245456241,-151.0,0.00038356,7]
[327583628,1716245456250,-776.51,0.00038356,6]
[327583629,1716245456259,-7097.57,0.00038356,6]
[327583630,1716245456268,-151.0,0.00038356,7]
[327583631,1716245456278,-1690.32,0.00038356,6]
[327583632,1716245456287,-500.0,0.00038356,6]
[327583633,1716245456297,-151.0,0.00038356,7]
[327583634,1716245456306,-795.99,0.00038356,6]
[327583635,1716245456317,-500.0,0.00038356,6]
[327583636,1716245456327,-151.0,0.00038356,7]
[327583637,1716245456337,-3710.87,0.00038356,6]
[327583638,1716245456347,-2092.89,0.00038356,6]
[327583639,1716245456358,-549.90926508,0.00038356,6]
[327583640,1716245456366,-500.0,0.00038356,6]
[327583641,1716245456375,-151.0,0.00038356,7]
[327583642,1716245456385,-1088.81,0.00038356,6]
[327583643,1716245456394,-500.0,0.00038356,6]
[327583644,1716245456403,-781.29,0.00038356,6]
[327583645,1716245456413,-694.72,0.00038356,6]
[327583646,1716245456423,-500.0,0.00038356,6]
[327583647,1716245456432,-151.0,0.00038356,7]
[327583648,1716245456444,-798.13,0.00038356,6]
[327583649,1716245456454,-500.0,0.00038356,6]
[327583650,1716245456463,-1608.69,0.00038356,6]
[327583651,1716245456474,-151.0,0.00038356,7]
[327583652,1716245456485,-708.39,0.00038356,6]
[327583653,1716245456494,-500.0,0.00038356,6]
[327583654,1716245456503,-9665.93,0.00038356,6]
[327583655,1716245456512,-544.69,0.00038356,6]
[327583656,1716245456522,-151.0,0.00038356,7]
[327583657,1716245456531,-2718.3,0.00038356,6]
[327583658,1716245456541,-1873.61,0.00038356,6]
[327583659,1716245456550,-8197.4,0.00038356,6]
[327583660,1716245456560,-562.5,0.00038356,6]
[327583661,1716245456570,-500.0,0.00038356,6]
[327583662,1716245456579,-527.55605188,0.00038356,6]
[327583663,1716245456589,-553.88,0.00038356,6]
[327583664,1716245456599,-620.5,0.00038356,6]
[327583665,1716245456609,-500.0,0.00038356,6]
[327583666,1716245456619,-540.80002773,0.00038356,6]
[327583667,1716245456630,-500.0,0.00038356,6]
[327583668,1716245456639,-500.0,0.00038356,6]
[327583669,1716245456650,-801.95,0.00038356,6]
[327583670,1716245456659,-724.18,0.00038356,6]
[327583671,1716245456668,-500.0,0.00038356,6]
[327583672,1716245456679,-500.0,0.00038356,6]
[327583673,1716245456689,-500.0,0.00038356,6]
[327583674,1716245456700,-500.0,0.00038356,6]
[327583675,1716245456711,-2543.81,0.00038356,6]
[327583676,1716245456721,-508.47284129,0.00038356,6]
[327583677,1716245456730,-1033.4,0.00038356,6]
[327583678,1716245456741,-2378.19,0.00038356,6]
[327583679,1716245456750,-500.0,0.00038356,6]
[327583680,1716245456759,-151.0,0.00038356,7]
[327583681,1716245456768,-4055.39,0.00038356,6]
[327583682,1716245456777,-151.0,0.00038356,7]
[327583683,1716245456787,-519.12660222,0.00038356,6]
[327583684,1716245456797,-500.0,0.00038356,6]
[327583685,1716245456806,-151.0,0.00038356,7]
[327583686,1716245456815,-151.0,0.00038356,7]
[327583687,1716245456824,-500.0,0.00038356,6]
[327583688,1716245456834,-151.0,0.00038356,7]
[327583689,1716245456845,-753.12,0.00038356,6]
[327583690,1716245456854,-500.0,0.00038356,6]
[327583691,1716245456864,-500.0,0.00038356,6]
[327583692,1716245456875,-512.27,0.00038356,6]
[327583693,1716245456886,-500.0,0.00038356,6]
[327583694,1716245456895,-500.0,0.00038356,6]
[327583695,1716245456904,-500.0,0.00038356,6]
[327583696,1716245456915,-500.0,0.00038356,6]
[327583697,1716245456925,-1731.01,0.00038356,6]
[327583698,1716245456934,-3283.48,0.00038356,6]
[327583699,1716245456943,-151.0,0.00038356,7]
[327583700,1716245456951,-1164.4,0.00038356,6]
[327583701,1716245456962,-151.0,0.00038356,7]
[327583702,1716245456971,-793.07,0.00038356,6]
[327583703,1716245456980,-500.0,0.00038356,6]
[327583704,1716245456990,-1438.11,0.00038356,6]
[327583705,1716245456999,-4621.16,0.00038356,6]
[327583706,1716245457008,-500.0,0.00038356,6]
[327583707,1716245457017,-500.0,0.00038356,6]
[327583708,1716245457026,-956.45,0.00038356,6]
[327583709,1716245457035,-2845.31,0.00038356,6]
[327583710,1716245457044,-23727.62,0.00038356,6]
[327583711,1716245457053,-151.0,0.00038356,7]
[327583712,1716245457062,-2845.31,0.00038356,6]
[327583713,1716245457071,-151.0,0.00038356,7]
[327583714,1716245457080,-500.0,0.00038356,6]
[327583715,1716245457089,-4348.62,0.00038356,6]
[327583716,1716245457098,-2845.31,0.00038356,6]
[327583717,1716245457107,-2845.31,0.00038356,6]
[327583718,1716245457116,-2845.31,0.00038356,6]
[327583719,1716245457126,-1289.66,0.00038356,6]
[327583720,1716245457135,-2845.31,0.00038356,6]
[327583721,1716245457145,-500.0,0.00038356,6]
[327583722,1716245457155,-2845.31,0.00038356,6]
[327583723,1716245457164,-1604.13,0.00038356,6]
[327583724,1716245457174,-2845.31,0.00038356,6]
[327583725,1716245457183,-2845.31,0.00038356,6]
[327583726,1716245457192,-2845.31,0.00038356,6]
[327583727,1716245457201,-500.0,0.00038356,6]
[327583728,1716245457210,-500.0,0.00038356,6]
[327583729,1716245457220,-500.0,0.00038356,6]
[327583730,1716245457230,-4068.0,0.00038356,6]
[327583731,1716245457240,-500.0,0.00038356,6]
[327583732,1716245457250,-826.66,0.00038356,6]
[327583733,1716245457259,-1475.24,0.00038356,6]
[327583734,1716245457268,-629.51838088,0.00038356,6]
[327583735,1716245457278,-500.0,0.00038356,6]
[327583736,1716245457287,-635.01,0.00038356,6]
[327583737,1716245457297,-500.0,0.00038356,6]
[327583738,1716245457307,-506.13,0.00038356,6]
[327583739,1716245457316,-500.0,0.00038356,6]
[327583740,1716245457326,-562.05203217,0.00038356,6]
[327583741,1716245457335,-500.0,0.00038356,6]
[327583742,1716245457345,-520.59639457,0.00038356,6]
[327583743,1716245457355,-987.32,0.00038356,6]
[327583744,1716245457366,-543.90206483,0.00038356,6]
[327583745,1716245457375,-200.54885542,0.00038356,6]
[327583746,1716245457385,-1446.75,0.00038356,6]
[327583747,1716245457394,-3342.78,0.00038356,6]
[327583748,1716245457403,-1648.74,0.00038356,6]
[327583749,1716245457412,-2956.33,0.00038356,6]
[327583750,1716245457422,-223.40129543,0.00038356,6]
[327583751,1716245457431,-10264.95,0.00038356,6]
[327583752,1716245457441,-500.0,0.00038356,6]
[327583753,1716245457451,-500.0,0.00038356,6]
[327583754,1716245457462,-500.0,0.00038356,6]
[327583755,1716245457471,-301.40862063,0.00038356,6]
[327583756,1716245457482,-1242.39,0.00038356,6]
[327583757,1716245457492,-500.0,0.00038356,6]
[327583758,1716245457501,-500.0,0.00038356,6]
[327583759,1716245457510,-151.0,0.00038356,7]
[327583760,1716245457520,-2571.94,0.00038356,6]
[327583761,1716245457529,-151.0,0.00038356,7]
[327583762,1716245457540,-281.62873503,0.00038356,6]
[327583763,1716245457550,-500.0,0.00038356,6]
[327583764,1716245457560,-500.0,0.00038356,6]
[327583765,1716245457570,-500.0,0.00038356,6]
[327583766,1716245457581,-1108.44,0.00038356,6]
[327583767,1716245457591,-559.52,0.00038356,6]
[327583768,1716245457601,-500.0,0.00038356,6]
[327583769,1716245457610,-500.0,0.00038356,6]
[327583770,1716245457619,-500.0,0.00038356,6]
[327583771,1716245457628,-500.0,0.00038356,6]
[327583772,1716245457638,-500.0,0.00038356,6]
[327583773,1716245457647,-500.0,0.00038356,6]
[327583774,1716245457656,-2449.3,0.00038356,6]
[327583775,1716245457665,-3546.39,0.00038356,6]
[327583776,1716245457675,-517.37596941,0.00038356,6]
[327583777,1716245457686,-500.0,0.00038356,6]
[327583778,1716245457697,-500.0,0.00038356,6]
[327583779,1716245457707,-195.59858733,0.00038356,6]
[327583780,1716245457718,-500.0,0.00038356,6]
[327583781,1716245457728,-342.607659,0.00038356,7]
[327583782,1716245457738,-500.0,0.00038356,6]
[327583783,1716245457748,-3624.52,0.00038356,6]
[327583784,1716245457758,-342.607659,0.00038356,7]
[327583785,1716245457767,-500.0,0.00038356,6]
[327583786,1716245457777,-342.607659,0.00038356,7]
[327583787,1716245457787,-526.95708147,0.00038356,6]
[327583788,1716245457797,-500.0,0.00038356,6]
[327583789,1716245457807,-342.607659,0.00038356,7]
[327583790,1716245457816,-4260.57,0.00038356,6]
[327583791,1716245457826,-500.0,0.00038356,6]
[327583792,1716245457836,-342.607659,0.00038356,7]
[327583793,1716245457846,-500.0,0.00038356,6]
[327583794,1716245457856,-500.0,0.00038356,6]
[327583795,1716245457866,-533.13969876,0.00038356,6]
[327583796,1716245457880,-500.0,0.00038356,6]
[327583797,1716245457891,-500.0,0.00038356,6]
[327583798,1716245457900,-500.0,0.00038356,6]
[327583799,1716245457911,-342.607659,0.00038356,7]
[327583800,1716245457924,-342.607659,0.00038356,7]
[327583801,1716245457934,-342.607659,0.00038356,7]
[327583802,1716245457945,-500.0,0.00038356,6]
[327583803,1716245457958,-500.0,0.00038356,6]
[327583804,1716245457969,-342.607659,0.00038356,7]
[327583805,1716245457979,-342.607659,0.00038356,7]
[327583806,1716245457991,-500.0,0.00038356,6]
[327583807,1716245458001,-500.0,0.00038356,6]
[327583808,1716245458011,-500.0,0.00038356,6]
[327583809,1716245458020,-500.0,0.00038356,6]
[327583810,1716245458030,-967.27,0.00038356,6]
[327583811,1716245458040,-500.0,0.00038356,6]
[327583812,1716245458050,-500.0,0.00038356,6]
[327583813,1716245458060,-1904.42,0.00038356,6]
[327583814,1716245458070,-500.0,0.00038356,6]
[327583815,1716245458079,-3444.31,0.00038356,6]
[327583816,1716245458089,-1926.38,0.00038356,6]
[327583817,1716245458099,-500.0,0.00038356,6]
[327583818,1716245458108,-510.50082348,0.00038356,6]
[327583819,1716245458118,-500.0,0.00038356,6]
[327583820,1716245458128,-2532.03,0.00038356,6]
[327583821,1716245458138,-356.12232668,0.00038356,6]
[327583822,1716245458148,-1475.47,0.00038356,6]
[327583823,1716245458159,-6190.15,0.00038356,6]
[327583824,1716245458168,-500.0,0.00038356,6]
[327583825,1716245458179,-327.09534354,0.00038356,6]
[327583826,1716245458189,-500.0,0.00038356,6]
[327583827,1716245458199,-500.0,0.00038356,6]
[327583828,1716245458210,-532.62,0.00038356,6]
[327583829,1716245458219,-500.0,0.00038356,6]
[327583830,1716245458229,-500.0,0.00038356,2]
[327583831,1716245458240,-500.0,0.00038356,6]
[327583832,1716245458251,-500.0,0.00038356,6]
[327583833,1716245458260,-500.0,0.00038356,6]
[327583834,1716245458270,-229.82403884,0.00038356,6]
[327583835,1716245458280,-3503.43,0.00038356,6]
[327583836,1716245458290,-1303.91,0.00038356,6]
[327583837,1716245458300,-76300.61206316,0.00038356,2]
[327583838,1716245458310,-500.0,0.00038356,6]
[327583839,1716245458319,-500.0,0.00038356,2]
[327583840,1716245458329,-1335.44,0.00038356,6]
[327583841,1716245458339,-882.81,0.00038356,6]
[327583842,1716245458348,-597.4,0.00038356,6]
[327583843,1716245458358,-243.23691387,0.00038356,6]
[327583844,1716245458368,-12418.64,0.00038356,6]
[327583845,1716245458377,-151.0,0.00038356,7]
[327583846,1716245458388,-500.0,0.00038356,6]
[327583847,1716245458399,-1919.82,0.00038356,6]
[327583848,1716245458409,-2545.17,0.00038356,6]
[327583849,1716245458420,-500.0,0.00038356,6]
[327583850,1716245458430,-500.0,0.00038356,6]
[327583851,1716245458440,-500.0,0.00038356,6]
[327583852,1716245458450,-500.0,0.00038356,6]
[327583853,1716245458460,-3116.86,0.00038356,6]
[327583854,1716245458472,-705.41,0.00038356,6]
[327583855,1716245458483,-1773.68,0.00038356,6]
[327583856,1716245458494,-1186.94,0.00038356,6]
[327583857,1716245458504,-500.0,0.00038356,6]
[327583858,1716245458514,-552.93667677,0.00038356,2]
[327583859,1716245458523,-500.0,0.00038356,6]
[327583860,1716245458534,-151.0,0.00038356,7]
[327583861,1716245458543,-570.18071738,0.00038356,6]
[327583862,1716245458554,-500.0,0.00038356,6]
[327583863,1716245458564,-4158.59,0.00038356,6]
[327583864,1716245458576,-601.97,0.00038356,6]
[327583865,1716245458586,-500.0,0.00038356,6]
[327583866,1716245458596,-536.0,0.00038356,6]
[327583867,1716245458606,-500.0,0.00038356,2]
[327583868,1716245458616,-500.0,0.00038356,6]
[327583869,1716245458626,-500.0,0.00038356,2]
[327583870,1716245458636,-3916.13,0.00038356,6]
[327583871,1716245458645,-2177.47,0.00038356,6]
[327583872,1716245458655,-500.0,0.00038356,2]
[327583873,1716245458665,-4818.5,0.00038356,6]
[327583874,1716245458675,-500.0,0.00038356,2]
[327583875,1716245458685,-500.0,0.00038356,2]
[327583876,1716245458694,-500.0,0.00038356,2]
[327583877,1716245458704,-600.52932973,0.00038356,2]
[327583878,1716245458715,-586.96,0.00038356,6]
[327583879,1716245458725,-500.0,0.00038356,6]
[327583880,1716245458736,-1879.68,0.00038356,6]
[327583881,1716245458745,-517.20660474,0.00038356,6]
[327583882,1716245458755,-534.46290453,0.00038356,6]
[327583883,1716245458765,-500.0,0.00038356,6]
[327583884,1716245458775,-500.0,0.00038356,2]
[327583885,1716245458786,-501.81,0.00038356,6]
[327583886,1716245458795,-500.0,0.00038356,6]
[327583887,1716245458805,-500.0,0.00038356,6]
[327583888,1716245458815,-500.0,0.00038356,6]
[327583889,1716245458825,-500.0,0.00038356,6]
[327583890,1716245458834,-500.0,0.00038356,6]
[327583891,1716245458844,-514.51077045,0.00038356,6]
[327583892,1716245458854,-8194.37,0.00038356,6]
[327583893,1716245458864,-1181.54,0.00038356,6]
[327583894,1716245458879,-500.0,0.00038356,6]
[327583895,1716245458890,-520.8,0.00038356,6]
[327583896,1716245458899,-500.0,0.00038356,6]
[327583897,1716245458909,-500.0,0.00038356,6]
[327583898,1716245458920,-500.0,0.00038356,6]
[327583899,1716245458930,-206.771122,0.00038356,7]
[327583900,1716245458940,-206.771122,0.00038356,7]
[327583901,1716245458950,-206.771122,0.00038356,7]
[327583902,1716245458960,-206.771122,0.00038356,7]
[327583903,1716245458970,-151.0,0.00038356,7]
[327583904,1716245458981,-206.771122,0.00038356,7]
[327583905,1716245458992,-500.0,0.00038356,6]
[327583906,1716245459002,-151.0,0.00038356,7]
[327583907,1716245459012,-500.0,0.00038356,6]
[327583908,1716245459022,-542.8371404,0.00038356,6]
[327583909,1716245459032,-151.0,0.00038356,7]
[327583910,1716245459042,-151.0,0.00038356,7]
[327583911,1716245459051,-151.0,0.00038356,7]
[327583912,1716245459061,-500.0,0.00038356,6]
[327583913,1716245459070,-500.0,0.00038356,6]
[327583914,1716245459080,-500.0,0.00038356,6]
[327583915,1716245459090,-4156.69,0.00038356,6]
[327583916,1716245459100,-500.0,0.00038356,6]
[327583917,1716245459109,-1674.87,0.00038356,6]
[327583918,1716245459119,-1495.58,0.00038356,6]
[327583919,1716245459129,-2798.91,0.00038356,6]
[327583920,1716245459139,-158.08429,0.0003837,2]
[327583921,1716245459149,-190.94720948,0.00038392,2]
[327583922,1716245459158,-157.052107,0.00038398,48]
[327583923,1716245459168,-2845.31,0.00038405,6]
[327583924,1716245459178,-182.24535194,0.00038423,2]
[327583925,1716245459188,-150.0,0.00038428,2]
[327583926,1716245459198,-150.0,0.00038444,2]
[327583927,1716245459208,-190.94720948,0.00038461,2]
[327583928,1716245459218,-150.0,0.00038482,2]
[327583929,1716245459227,-150.0,0.00038494,2]
[327583930,1716245459236,-150.0,0.0003851,2]
[327583931,1716245459246,-150.0,0.00038516,2]
[327583932,1716245459255,-150.0,0.00038526,2]
[327583933,1716245459265,-201.28727559,0.00038529,2]
[327583934,1716245459274,-168.67349142,0.00038529,2]
[327583935,1716245459284,-190.94720948,0.0003853,2]
[327583936,1716245459294,-150.85608182,0.0003853,7]
[327583937,1716245459303,-359.33756806,0.0003853,2]
[327583938,1716245459313,-150.0,0.00038536,2]
[327583939,1716245459322,-150.0,0.00038563,2]
[327583940,1716245459332,-260.99838734,0.0003862,2]
[327583941,1716245459344,-203.0,0.0003862,15]
[327583942,1716245459355,-1034.5075879,0.00038627,2]
[327583943,1716245459365,-1034.5075879,0.00038627,2]
[327583944,1716245459375,-1432.403189,0.00038629,14]
[327583945,1716245459385,-151.0,0.00038629,14]
[327583946,1716245459395,-197.427658,0.00038629,14]
[327583947,1716245459405,-2845.31,0.00038629,6]
[327583948,1716245459415,-2845.31,0.00038629,6]
[327583949,1716245459425,-2845.31,0.00038629,6]
[327583950,1716245459435,-2845.31,0.00038629,6]
[327583951,1716245459444,-2845.31,0.00038629,6]
[327583952,1716245459453,-2845.31,0.00038629,6]
[327583953,1716245459463,-2845.31,0.00038629,6]
[327583954,1716245459473,-2845.31,0.00038629,6]
[327583955,1716245459483,-150.0,0.00038629,2]
[327583956,1716245459495,-750759.03475964,0.0003863,15]
[327583957,1716245459505,-500.0,0.0003863,6]
[327583958,1716245459514,-500.0,0.0003863,6]
[327583959,1716245459524,-500.0,0.0003863,6]
[327583960,1716245459533,-500.0,0.0003863,6]
[327583961,1716245459543,-500.0,0.0003863,6]
[327583962,1716245459552,-500.0,0.0003863,6]
[327583963,1716245459562,-500.0,0.0003863,6]
[327583964,1716245459571,-500.0,0.0003863,6]
[327583965,1716245459581,-320.59236827,0.0003863,6]
[327583966,1716245459591,-500.0,0.0003863,6]
[327583967,1716245459600,-570.58244643,0.0003863,6]
[327583968,1716245459814,-500.0,0.0003863,6]
[327583969,1716245459824,-511.7353021,0.0003863,6]
[327583970,1716245459833,-500.0,0.0003863,6]
[327583971,1716245459843,-500.0,0.0003863,6]
[327583972,1716245459852,-500.0,0.0003863,6]
[327583973,1716245459861,-508.65722051,0.0003863,6]
[327583974,1716245459871,-527.71587109,0.0003863,6]
[327583975,1716245459884,-500.0,0.0003863,6]
[327583976,1716245459893,-515.67864063,0.0003863,6]
[327583977,1716245459902,-613.92032735,0.0003863,6]
[327583978,1716245459911,-500.0,0.0003863,6]
[327583979,1716245459921,-508.05468482,0.0003863,6]
[327583980,1716245459930,-545.0860409,0.0003863,6]
[327583981,1716245459939,-509.63601957,0.0003863,6]
[327583982,1716245459949,-500.0,0.0003863,6]
[327583983,1716245459958,-500.0,0.0003863,6]
[327583984,1716245459968,-357.32030613,0.0003863,6]
[327583985,1716245459977,-526.97634024,0.0003863,6]
[327583986,1716245459986,-200.0,0.0003863,6]
[327583987,1716245459995,-500.0,0.0003863,6]
[327583988,1716245460005,-523.76515855,0.0003863,6]
[327583989,1716245460015,-500.0,0.0003863,6]
[327583990,1716245460024,-500.0,0.0003863,6]
[327583991,1716245460033,-500.0,0.0003863,6]
[327583992,1716245460043,-510.68386519,0.0003863,6]
[327583993,1716245460052,-500.0,0.0003863,6]
[327583994,1716245460062,-522.84311742,0.0003863,6]
[327583995,1716245460071,-500.0,0.0003863,6]
[327583996,1716245460080,-1186.39,0.0003863,6]
[327583997,1716245460089,-500.0,0.0003863,6]
[327583998,1716245460099,-500.0,0.0003863,6]
[327583999,1716245460108,-500.0,0.0003863,6]
[327584000,1716245460117,-929.22,0.0003863,6]
[327584001,1716245460126,-500.0,0.0003863,6]
[327584002,1716245460135,-604.11,0.0003863,6]
[327584003,1716245460144,-500.0,0.0003863,6]
[327584004,1716245460154,-938.05,0.0003863,6]
[327584005,1716245460163,-506.38,0.0003863,6]
[327584006,1716245460171,-500.0,0.0003863,6]
[327584007,1716245460181,-568.57663082,0.0003863,6]
[327584008,1716245460191,-500.0,0.0003863,6]
[327584009,1716245460201,-500.0,0.0003863,6]
[327584010,1716245460210,-500.0,0.0003863,6]
[327584011,1716245460220,-1500.0,0.0003863,6]
[327584012,1716245460229,-666.6,0.0003863,6]
[327584013,1716245460240,-500.0,0.0003863,6]
[327584014,1716245460250,-512.23678423,0.0003863,6]
[327584015,1716245460260,-500.0,0.0003863,6]
[327584016,1716245460269,-500.0,0.0003863,6]
[327584017,1716245460279,-501.53660239,0.0003863,6]
[327584018,1716245460288,-500.0,0.0003863,6]